bitfinex/quotes_SOLUSD_20250822
["timestamp","ask_amount","ask_price","bid_price","bid_amount"]
[1755872777145,0.67,189.85,189.68,0.69]
[1755872777374,19.41937614,189.79,189.72,19.41937614]
[1755872777554,37.96,189.86,189.61,0.7]
[1755872777555,0.68,189.78,189.61,0.7]
[1755872777764,78.72,189.84,189.77,19.41937614]
[1755872777949,78.04,189.84,189.82,19.41937614]
[1755872778155,20.09937614,189.83,189.66,0.69]
[1755872778351,78.04,189.84,189.8,19.41937614]
[1755872778570,19.41937614,189.81,189.74,19.41937614]
[1755872778777,19.41937614,189.79,189.72,19.41937614]
[1755872778973,0.68,189.8,189.75,19.41937614]
[1755872779282,0.68,189.84,189.79,19.41937614]
[1755872779580,0.68,189.84,189.63,0.14216157]
[1755872779581,0.68,189.83,189.63,0.7]
[1755872779795,19.41937614,189.78,189.71,19.41937614]
[1755872779953,19.41937614,189.72,189.53,0.7]
[1755872780152,77.98,189.75,189.53,0.7]
[1755872780796,19.41937614,189.71,189.53,0.7]
[1755872780978,0.68,189.73,189.65,19.41937614]
[1755872781289,0.28432314,189.74,189.72,19.41937614]
[1755872781290,77.96,189.74,189.72,19.41937614]
[1755872781467,0.68,189.84,189.73,19.41937614]
[1755872781781,0.68,189.84,189.75,19.41937614]
[1755872782096,19.41937614,189.82,189.76,19.41937614]
[1755872782259,19.41937614,189.77,189.59,0.03]
[1755872782575,0.68,189.81,189.59,0.03]
[1755872782796,97.33937614,189.8,189.73,19.41937614]
[1755872782996,77.92,189.8,189.75,19.41937614]
[1755872783201,0.96432314,189.79,189.6,0.7]
[1755872783381,0.28432314,189.77,189.6,0.7]
[1755872783583,19.41937614,189.71,189.54,0.04]
[1755872783800,19.41937614,189.69,189.54,0.04]
[1755872784005,19.41937614,189.63,189.53,0.03]
[1755872784306,0.68,189.68,189.53,0.03]
[1755872784307,0.28432314,189.6,189.53,0.03]
[1755872784476,37.98,189.67,189.53,19.44937614]
[1755872784673,0.28432314,189.62,189.53,0.03]
[1755872784874,0.68,189.62,189.56,19.41937614]
[1755872785088,77.88,189.63,189.53,0.03]
[1755872785305,0.28432314,189.66,189.53,0.03]
[1755872785597,20.09937614,189.62,189.56,19.41937614]
[1755872785802,37.98,189.67,189.61,19.41937614]
[1755872785978,37.98,189.67,189.54,0.7]
[1755872786370,37.98,189.67,189.66,19.41937614]
[1755872786588,77.86,189.75,189.66,19.41937614]
[1755872786786,77.86,189.75,189.59,0.69]
[1755872787102,0.06,189.71,189.55,0.7]
[1755872787274,0.06,189.71,189.53,0.03]
[1755872787275,0.06,189.71,189.7,19.41937614]
[1755872787700,0.06,189.79,189.78,19.41937614]
[1755872787996,0.06,189.79,189.7,0.69]
[1755872788203,0.06,189.79,189.63,0.69]
[1755872788401,0.68,189.78,189.57,0.7]
[1755872788595,77.82,189.77,189.72,19.41937614]
[1755872788791,77.82,189.77,189.57,0.84216157]
[1755872788792,0.68,189.76,189.6,0.7]
[1755872788987,19.41937614,189.75,189.6,0.7]
[1755872789186,77.82,189.77,189.73,19.41937614]
[1755872789399,0.68,189.76,189.6,0.7]
[1755872789702,77.82,189.77,189.74,19.41937614]
[1755872789887,0.06,189.79,189.74,19.41937614]
[1755872790195,77.78,189.78,189.64,0.7]
[1755872790401,0.68,189.78,189.62,0.7]
[1755872790608,77.84,189.79,189.76,19.41937614]
[1755872790978,0.06,189.79,189.78,19.41937614]
[1755872791486,0.06,189.79,189.78,20.11937614]
[1755872791675,0.06,189.81,189.78,20.11937614]
[1755872791880,0.06,189.81,189.8,19.41937614]
[1755872792081,77.76,189.89,189.8,19.41937614]
[1755872792406,77.76,189.89,189.68,0.28432314]
[1755872792579,77.76,189.89,189.76,0.28432314]
[1755872792777,77.76,189.89,189.88,19.41937614]
[1755872793313,77.76,189.89,189.72,0.84216157]
[1755872793513,19.41937614,189.87,189.72,0.7]
[1755872793939,19.41937614,189.83,189.67,0.7]
[1755872794104,0.14216157,189.79,189.6,0.7]
[1755872794279,83.02627029,189.89,189.54,0.7]
[1755872794280,19.41937614,189.7,189.54,0.7]
[1755872794478,19.41937614,189.7,189.61,19.41937614]
[1755872794479,19.41937614,189.67,189.61,19.41937614]
[1755872794791,19.41937614,189.67,189.53,0.03]
[1755872794792,0.68,189.7,189.64,19.41937614]
[1755872794993,77.64,189.69,189.57,0.7]
[1755872795719,77.64,189.69,189.53,0.03]
[1755872795720,0.68,189.68,189.53,0.03]
[1755872795902,0.28432314,189.77,189.54,0.07]
[1755872796104,0.68,189.69,189.66,19.41937614]
[1755872796421,77.62,189.73,189.68,19.41937614]
[1755872796620,19.41937614,189.69,189.55,0.7]
[1755872796797,19.41937614,189.67,189.61,19.41937614]
[1755872797110,20.09937614,189.7,189.64,19.41937614]
[1755872797317,0.68,189.76,189.69,19.41937614]
[1755872797519,19.41937614,189.7,189.53,0.03]
[1755872797737,19.41937614,189.68,189.62,19.41937614]
[1755872797939,37.98,189.78,189.67,19.41937614]
[1755872798147,37.98,189.78,189.58,0.03]
[1755872798148,0.68,189.76,189.58,0.03]
[1755872798351,20.09937614,189.76,189.7,19.41937614]
[1755872798516,20.09937614,189.76,189.53,0.03]
[1755872798517,0.68,189.76,189.72,19.41937614]
[1755872798713,13.16117519,189.96,189.6,0.06]
[1755872798714,0.68,189.83,189.75,19.41937614]
[1755872798913,37.98,189.92,189.82,19.41937614]
[1755872798914,86.50804621,189.85,189.82,19.41937614]
[1755872799111,77.54,189.85,189.84,19.41937614]
[1755872799412,77.54,189.85,189.75,0.08]
[1755872799615,77.54,189.85,189.84,19.41937614]
[1755872799835,0.68,190.02,189.84,20.11937614]
[1755872800037,37.98,190.07,190.01,19.41937614]
[1755872800336,0.06,190.11,189.86,10.0]
[1755872800337,0.06,190.11,190.06,19.41937614]
[1755872800518,0.06,190.11,190.02,0.7]
[1755872800519,0.06,190.11,190.1,19.41937614]
[1755872800922,0.74,190.11,189.97,0.7]
[1755872801131,0.74,190.11,189.92,0.28432314]
[1755872801340,19.41937614,190.09,190.03,19.41937614]
[1755872801636,19.41937614,190.04,189.88,0.7]
[1755872801826,0.14216157,190.02,189.82,0.04]
[1755872802132,19.41937614,189.92,189.75,5.36770676]
[1755872802346,19.41937614,189.87,189.74,0.7]
[1755872802637,77.4,189.86,189.77,19.41937614]
[1755872802814,77.4,189.86,189.81,19.41937614]
[1755872803133,0.68,189.85,189.78,19.41937614]
[1755872803330,0.68,189.9,189.84,19.41937614]
[1755872803532,0.68,189.9,189.72,26.59033664]
[1755872803533,19.41937614,189.87,189.72,0.03]
[1755872803740,10.0,190.06,189.86,19.41937614]
[1755872803927,0.68,189.95,189.9,19.41937614]
[1755872804113,77.88,189.94,189.9,19.41937614]
[1755872804322,77.88,189.94,189.8,0.7]
[1755872804522,0.68,190.02,189.8,0.7]
[1755872804728,115.28,190.03,189.84,0.28432314]
[1755872804924,115.28,190.03,189.85,0.7]
[1755872805125,25.83965398,190.01,189.85,0.7]
[1755872805326,0.68,190.0,189.8,0.7]
[1755872805530,0.68,190.0,189.76,0.14216157]
[1755872805725,0.68,190.0,189.85,25.83965398]
[1755872805927,10.28432314,189.98,189.84,25.83965398]
[1755872806121,25.83965398,189.88,189.82,25.83965398]
[1755872806318,0.68,189.87,189.72,0.03]
[1755872806536,77.28,189.86,189.76,25.83965398]
[1755872806845,0.28432314,189.84,189.72,0.03]
[1755872807050,25.83965398,189.76,189.72,0.03]
[1755872807344,77.26,189.75,189.73,25.83965398]
[1755872807543,25.83965398,189.74,189.72,0.03]
[1755872807744,0.66,189.8,189.72,25.86965398]
[1755872807951,37.96,189.83,189.76,25.83965398]
[1755872808251,77.22,189.82,189.72,0.03]
[1755872808551,77.22,189.81,189.79,25.83965398]
[1755872808738,115.18,189.83,189.8,25.83965398]
[1755872808959,115.84,189.83,189.72,0.73]
[1755872809125,25.83965398,189.8,189.72,0.03]
[1755872809328,25.83965398,189.73,189.72,0.03]
[1755872809519,0.28432314,189.72,189.62,25.83965398]
[1755872809845,0.28432314,189.72,189.66,25.83965398]
[1755872809846,25.83965398,189.72,189.66,25.83965398]
[1755872810030,25.83965398,189.67,189.54,0.39]
[1755872810346,0.28432314,189.69,189.52,0.1]
[1755872810524,25.83965398,189.61,189.54,25.83965398]
[1755872810729,77.16,189.62,189.52,0.14]
[1755872811030,77.16,189.62,189.56,25.83965398]
[1755872811220,25.83965398,189.67,189.6,25.83965398]
[1755872811420,77.14,189.66,189.52,0.1]
[1755872811631,0.66,189.65,189.56,25.83965398]
[1755872811819,0.94432314,189.65,189.54,25.83965398]
[1755872812040,25.83965398,189.56,189.52,0.1]
[1755872812241,0.66,189.55,189.52,0.1]
[1755872812546,77.1,189.54,189.52,0.1]
[1755872812750,77.1,189.54,189.52,25.93965398]
[1755872813049,77.1,189.54,189.53,25.86965398]
[1755872813251,77.1,189.54,189.53,0.03]
[1755872813761,0.28432314,189.52,189.35,2.75262837]
[1755872813925,0.28432314,189.5,189.37,25.83965398]
[1755872814126,10.0,189.59,189.29,5.25311595]
[1755872814336,0.66,189.49,189.41,25.83965398]
[1755872814542,0.66,189.59,189.48,25.83965398]
[1755872814752,25.83965398,189.58,189.44,0.03]
[1755872814921,102.89965398,189.57,189.51,25.83965398]
[1755872815121,77.06,189.57,189.52,25.83965398]
[1755872815352,25.83965398,189.53,189.37,0.04]
[1755872815652,25.83965398,189.44,189.34,0.1]
[1755872815948,77.04,189.43,189.36,25.83965398]
[1755872816159,77.02,189.42,189.34,0.1]
[1755872816337,0.66,189.41,189.34,0.1]
[1755872816524,0.66,189.41,189.35,25.83965398]
[1755872816730,52.08,189.41,189.38,25.83965398]
[1755872816948,52.08,189.41,189.34,0.1]
[1755872817134,25.83965398,189.37,189.34,0.1]
[1755872817450,77.02,189.39,189.36,25.83965398]
[1755872817633,77.02,189.39,189.34,0.1]
[1755872817838,77.02,189.39,189.38,25.83965398]
[1755872818238,77.02,189.39,189.34,0.1]
[1755872818422,0.66,189.38,189.34,0.1]
[1755872818630,38.0,189.47,189.34,0.1]
[1755872818840,25.83965398,189.39,189.34,0.1]
[1755872819039,0.28432314,189.43,189.34,25.93965398]
[1755872819240,0.28432314,189.43,189.35,25.83965398]
[1755872819449,0.28432314,189.43,189.34,0.1]
[1755872819637,102.81965398,189.42,189.35,25.83965398]
[1755872819951,0.66,189.45,189.37,25.83965398]
[1755872820159,25.83965398,189.44,189.34,0.1]
[1755872820363,25.83965398,189.37,189.34,0.1]
[1755872820534,76.96,189.36,189.35,25.83965398]
[1755872820854,76.94,189.4,189.35,25.83965398]
[1755872821071,25.83965398,189.36,189.34,0.1]
[1755872821237,0.66,189.44,189.34,25.93965398]
[1755872821432,25.83965398,189.35,189.34,0.1]
[1755872821649,76.92,189.35,189.34,0.1]
[1755872821847,76.9,189.35,189.34,0.1]
[1755872822234,76.9,189.35,189.34,25.93965398]
[1755872822446,76.9,189.35,189.34,0.1]
[1755872822763,103.68397712,189.35,189.3,0.03]
[1755872822934,25.83965398,189.32,189.3,0.03]
[1755872823136,25.83965398,189.31,189.3,0.03]
[1755872823337,26.49965398,189.31,189.3,0.03]
[1755872823763,0.28432314,189.3,189.16,5.27064077]
[1755872823936,25.98181555,189.26,189.1,2.75638904]
[1755872824139,0.14216157,189.25,189.11,0.7]
[1755872824338,0.14216157,189.25,189.1,2.75638904]
[1755872824339,25.83965398,189.14,189.1,2.75638904]
[1755872824564,25.83965398,189.11,188.95,0.13]
[1755872824880,10.0,189.19,188.76,38.04]
[1755872824881,25.83965398,189.07,188.99,0.7]
[1755872825038,102.67965398,189.06,188.96,5.19885388]
[1755872825237,76.84,189.06,188.95,0.7]
[1755872825440,0.28432314,189.09,189.0,0.7]
[1755872825666,76.82,189.08,189.0,0.7]
[1755872826058,0.58,189.25,189.07,25.83965398]
[1755872826357,19.59042654,189.19,189.06,0.7]
[1755872826560,0.58,189.18,189.0,0.7]
[1755872826735,0.28432314,189.23,189.0,0.7]
[1755872826736,0.58,189.23,189.14,19.59042654]
[1755872826936,19.59042654,189.26,189.12,0.7]
[1755872827142,19.59042654,189.17,189.06,0.7]
[1755872827366,0.14216157,189.17,189.08,19.59042654]
[1755872827663,0.58,189.2,189.05,0.03]
[1755872827837,8.81781984,189.26,189.05,0.03]
[1755872828034,19.59042654,189.17,189.06,0.7]
[1755872828240,19.59042654,189.18,189.12,19.59042654]
[1755872828439,19.73258811,189.16,189.1,19.59042654]
[1755872828652,76.78,189.19,189.09,0.7]
[1755872828844,38.04,189.27,189.09,0.7]
[1755872829162,96.35042654,189.26,189.2,19.59042654]
[1755872829363,76.76,189.26,189.12,0.7]
[1755872829572,19.59042654,189.21,189.07,0.7]
[1755872829863,0.28432314,189.16,189.05,0.03]
[1755872830032,77.32,189.2,189.05,0.03]
[1755872830033,19.59042654,189.15,189.05,0.03]
[1755872830238,19.87474968,189.14,189.05,0.03]
[1755872830438,0.28432314,189.11,189.05,0.03]
[1755872830741,76.72,189.12,189.05,0.03]
[1755872831157,21.59042654,189.15,189.09,19.59042654]
[1755872831356,2.0,189.15,189.14,19.59042654]
[1755872831636,2.0,189.15,189.14,20.29042654]
[1755872831842,2.0,189.15,189.09,0.7]
[1755872832046,2.0,189.15,189.05,0.03]
[1755872832348,0.28432314,189.14,189.05,0.03]
[1755872832541,2.0,189.15,189.11,19.59042654]
[1755872832737,78.68,189.15,189.14,19.59042654]
[1755872832964,78.68,189.15,189.05,0.03]
[1755872833140,0.28432314,189.13,189.12,0.03]
[1755872833342,0.28432314,189.14,189.12,0.03]
[1755872833658,0.28432314,189.12,189.05,0.03]
[1755872833853,0.55,189.11,189.1,0.03]
[1755872834170,0.55,189.11,189.05,0.03]
[1755872834552,2.0,189.15,189.05,0.03]
[1755872834752,60.2900717,189.14,189.05,0.03]
[1755872834954,9.1900717,189.14,189.13,19.59042654]
[1755872835159,9.1900717,189.14,189.05,0.03]
[1755872835465,9.1900717,189.14,189.13,19.59042654]
[1755872835963,9.1900717,189.14,189.13,0.7]
[1755872836269,9.1900717,189.14,189.05,0.03]
[1755872836270,9.1900717,189.14,189.09,0.7]
[1755872836441,9.1900717,189.14,189.05,0.06]
[1755872836771,9.1900717,189.14,189.13,19.59042654]
[1755872836968,9.1900717,189.14,189.09,0.03]
[1755872837151,9.1900717,189.14,189.13,19.62042654]
[1755872837557,38.56,189.27,189.13,0.03]
[1755872837747,19.59042654,189.23,189.05,0.08]
[1755872837947,19.73258811,189.18,189.05,0.08]
[1755872838144,19.73258811,189.18,189.12,19.59042654]
[1755872838145,0.28432314,189.17,189.12,19.59042654]
[1755872838348,0.52,189.16,189.05,0.08]
[1755872838657,0.28432314,189.14,189.05,0.03]
[1755872839003,19.87474968,189.14,189.07,19.59042654]
[1755872839178,0.28432314,189.07,188.88,0.69]
[1755872839385,19.59042654,188.99,188.83,0.69]
[1755872839555,76.48,188.98,188.96,19.59042654]
[1755872839872,76.46,188.98,188.9,0.12]
[1755872840254,0.28432314,188.97,188.9,0.1]
[1755872840454,0.28432314,188.97,188.9,0.02]
[1755872840455,0.28432314,188.91,188.9,0.02]
[1755872840697,0.28432314,188.91,188.75,3.45117075]
[1755872840698,0.28432314,188.9,188.75,2.76117075]
[1755872841050,0.28432314,188.89,188.72,6.11618433]
[1755872841353,0.28432314,188.87,188.72,0.69]
[1755872841762,0.39,188.86,188.71,5.26410751]
[1755872841979,0.39,188.86,188.68,2.76403595]
[1755872842175,0.67432314,188.86,188.68,2.76403595]
[1755872842348,19.87474968,188.81,188.68,2.76403595]
[1755872842555,0.67432314,188.81,188.68,2.76403595]
[1755872842774,0.39,188.81,188.72,19.59042654]
[1755872842975,0.28432314,188.79,188.62,5.1848675]
[1755872843173,0.28432314,188.79,188.55,2.76521424]
[1755872843452,0.39,188.78,188.53,10.0]
[1755872843680,0.28432314,188.77,188.54,0.07]
[1755872843959,0.14216157,188.68,188.54,0.07]
[1755872844265,0.14216157,188.67,188.54,0.07]
[1755872844449,38.14,188.68,188.66,19.59042654]
[1755872844654,114.52,188.68,188.59,0.09]
[1755872844986,114.52,188.68,188.59,0.12]
[1755872845495,0.28432314,188.67,188.55,0.12]
[1755872845659,0.28432314,188.67,188.55,0.31]
[1755872845978,76.34,188.67,188.66,19.59042654]
[1755872846180,38.14,188.68,188.56,0.28432314]
[1755872846382,38.14,188.68,188.57,0.39]
[1755872846680,19.36664786,188.84,188.57,0.39]
[1755872846681,76.36,188.75,188.67,19.59042654]
[1755872846866,76.36,188.74,188.66,0.39]
[1755872847271,38.16,188.85,188.66,27.42186448]
[1755872847468,74.9,188.89,188.72,0.14216157]
[1755872847659,9.46794423,188.93,188.76,0.14216157]
[1755872847864,9.46794423,188.93,188.77,0.06]
[1755872848154,9.46794423,188.93,188.68,0.28432314]
[1755872848155,0.39,188.92,188.68,0.28432314]
[1755872848356,9.46794423,188.93,188.9,19.59042654]
[1755872848576,76.69,188.92,188.76,0.12]
[1755872848777,19.59042654,188.88,188.7,0.13]
[1755872849076,76.3,188.92,188.71,0.02]
[1755872849281,0.39,188.91,188.71,0.02]
[1755872849456,0.39,188.91,188.66,10.28432314]
[1755872849457,0.28432314,188.9,188.66,0.67]
[1755872849659,0.28432314,188.82,188.77,19.59042654]
[1755872849870,0.28432314,188.8,188.66,0.67]
[1755872850074,0.39,188.79,188.63,0.03]
[1755872850571,19.87474968,188.72,188.65,0.03]
[1755872850884,0.39,188.79,188.65,0.03]
[1755872850885,0.39,188.77,188.65,0.03]
[1755872851062,0.39,188.77,188.73,19.59042654]
[1755872851254,0.28432314,188.75,188.65,0.11]
[1755872851458,76.22,188.76,188.74,19.59042654]
[1755872851674,7.80246397,188.79,188.68,0.67]
[1755872851954,38.16,188.82,188.78,19.59042654]
[1755872852159,38.16,188.82,188.81,19.59042654]
[1755872852371,38.16,188.82,188.73,0.65]
[1755872852571,38.16,188.82,188.67,0.03]
[1755872852572,38.16,188.82,188.81,19.59042654]
[1755872852877,38.16,188.82,188.73,0.16]
[1755872853075,38.16,188.82,188.7,0.44]
[1755872853275,38.16,188.82,188.81,19.59042654]
[1755872853481,38.16,188.82,188.76,0.69]
[1755872853671,38.16,188.82,188.81,19.59042654]
[1755872853865,0.14216157,188.81,188.67,0.06]
[1755872854081,0.14216157,188.81,188.74,19.59042654]
[1755872854379,38.16,188.82,188.8,19.59042654]
[1755872854589,114.3,188.82,188.81,19.59042654]
[1755872855086,114.3,188.82,188.67,0.03]
[1755872855262,114.3,188.82,188.81,19.59042654]
[1755872855587,7.88557361,188.97,188.81,20.28042654]
[1755872855774,76.12,188.96,188.81,0.69]
[1755872855959,76.12,188.96,188.9,19.59042654]
[1755872856160,76.12,188.96,188.71,26.9144689]
[1755872856161,19.59042654,188.93,188.69,15.913853]
[1755872856360,19.59042654,188.91,188.77,0.69]
[1755872856687,0.39,188.92,188.77,0.69]
[1755872856994,19.59042654,188.96,188.9,19.59042654]
[1755872857172,7.88557361,188.97,188.86,0.69]
[1755872857378,7.88557361,188.97,188.77,0.28432314]
[1755872857379,76.06,188.96,188.91,19.59042654]
[1755872857683,0.39,188.95,188.84,19.59042654]
[1755872857894,0.67432314,188.95,188.86,19.59042654]
[1755872858098,0.39,189.05,188.76,0.28432314]
[1755872858282,76.02,189.03,188.87,0.02]
[1755872858484,76.41,189.03,188.87,0.02]
[1755872858796,0.39,189.02,188.82,0.05]
[1755872859304,75.98,189.01,188.82,0.05]
[1755872859518,19.73258811,188.96,188.91,19.59042654]
[1755872859693,75.98,189.01,188.86,19.59042654]
[1755872859694,19.59042654,188.92,188.86,19.59042654]
[1755872859873,0.14216157,188.93,188.51,5.40824141]
[1755872859874,0.28432314,188.89,188.85,19.59042654]
[1755872860077,75.96,188.91,188.88,19.59042654]
[1755872860293,75.96,188.91,188.9,19.59042654]
[1755872860880,75.96,188.91,188.85,0.69]
[1755872861183,75.96,188.91,188.75,19.59042654]
[1755872861184,75.96,188.91,188.83,0.69]
[1755872861588,75.92,188.93,188.9,19.59042654]
[1755872861901,75.92,188.93,188.86,0.69]
[1755872862287,75.92,188.93,188.92,19.59042654]
[1755872862816,75.92,188.93,188.84,0.12]
[1755872862817,8.03742059,189.0,188.83,0.28432314]
[1755872863104,8.03742059,189.0,188.75,46.44662414]
[1755872863105,75.86,189.0,188.81,10.0]
[1755872863314,0.39,188.99,188.84,0.19]
[1755872863683,0.14216157,188.99,188.95,19.59042654]
[1755872863978,38.18,189.08,188.89,0.28432314]
[1755872864183,75.82,189.07,188.9,0.69]
[1755872864389,76.21,189.07,188.9,0.69]
[1755872864585,19.59042654,189.02,188.97,19.59042654]
[1755872864901,0.39,189.01,188.85,0.69]
[1755872865091,0.06,189.03,188.97,19.59042654]
[1755872865305,0.06,189.03,189.02,19.59042654]
[1755872865598,75.84,189.03,189.02,19.59042654]
[1755872866188,75.84,189.03,188.93,0.69]
[1755872866596,75.84,189.03,189.02,19.59042654]
[1755872866986,0.06,189.03,189.02,19.59042654]
[1755872867388,38.18,189.08,189.02,20.31042654]
[1755872867594,38.18,189.08,189.02,0.72]
[1755872867909,38.18,189.08,189.04,19.59042654]
[1755872868203,19.59042654,189.05,188.9,0.72]
[1755872868388,0.28432314,189.03,188.9,0.72]
[1755872868579,0.67432314,189.07,188.9,0.72]
[1755872868778,19.59042654,189.02,188.96,19.59042654]
[1755872869079,19.59042654,189.02,188.78,26.30701581]
[1755872869080,0.28432314,188.96,188.85,0.72]
[1755872869288,19.87474968,188.94,188.88,19.59042654]
[1755872869502,19.98042654,188.98,188.92,19.59042654]
[1755872869696,0.28432314,189.0,188.93,19.59042654]
[1755872869895,0.28432314,188.97,188.92,19.59042654]
[1755872870096,0.28432314,188.93,188.75,19.59042654]
[1755872870303,0.28432314,188.91,188.89,19.59042654]
[1755872870503,0.28432314,188.91,188.88,19.59042654]
[1755872870682,0.28432314,188.91,188.86,19.59042654]
[1755872870881,0.28432314,188.91,188.89,19.59042654]
[1755872871087,0.28432314,188.91,188.75,19.59042654]
[1755872871302,75.62,188.92,188.76,10.0]
[1755872871504,0.06,188.98,188.91,19.59042654]
[1755872871717,0.06,188.98,188.97,19.59042654]
[1755872871897,75.62,188.98,188.95,19.59042654]
[1755872872088,75.62,188.98,188.78,10.0]
[1755872872319,0.28432314,188.97,188.92,19.59042654]
[1755872872607,0.39,188.96,188.89,19.59042654]
[1755872872819,0.28432314,188.94,188.8,0.72]
[1755872873207,0.28432314,188.92,188.8,0.72]
[1755872873519,0.28432314,188.92,188.75,5.23487597]
[1755872873520,0.28432314,188.87,188.76,0.72]
[1755872873721,19.59042654,188.83,188.71,0.72]
[1755872873923,0.28432314,188.82,188.71,0.72]
[1755872874225,0.28432314,188.82,188.79,19.59042654]
[1755872874400,0.28432314,188.88,188.81,19.59042654]
[1755872874600,0.14216157,188.82,188.73,0.44]
[1755872874925,0.28432314,188.82,188.69,0.03]
[1755872875412,0.28432314,188.83,188.78,19.59042654]
[1755872875613,0.28432314,188.82,188.77,19.59042654]
[1755872875800,75.44,188.83,188.81,19.59042654]
[1755872876000,75.72432314,188.83,188.82,19.59042654]
[1755872876299,75.44,188.83,188.82,19.59042654]
[1755872876493,75.44,188.83,188.68,0.03]
[1755872876494,75.44,188.83,188.69,0.28432314]
[1755872876915,75.44,188.83,188.79,19.59042654]
[1755872877121,75.44,188.83,188.7,5.19909849]
[1755872877317,75.4,188.83,188.82,19.59042654]
[1755872877702,0.14216157,188.82,188.71,0.04]
[1755872877901,0.28432314,188.82,188.71,0.04]
[1755872878223,19.59042654,188.79,188.68,0.03]
[1755872878433,0.28432314,188.76,188.73,19.59042654]
[1755872878732,0.28432314,188.76,188.68,0.03]
[1755872878733,19.59042654,188.74,188.69,19.59042654]
[1755872878916,19.87474968,188.72,188.68,0.03]
[1755872879113,0.28432314,188.72,188.68,0.03]
[1755872879423,75.34,188.73,188.68,19.62042654]
[1755872879603,75.34,188.73,188.68,0.03]
[1755872879604,0.28432314,188.7,188.68,0.03]
[1755872879802,19.59042654,188.71,188.68,0.03]
[1755872880121,0.28432314,188.69,188.68,0.03]
[1755872880300,19.59042654,188.69,188.68,0.03]
[1755872880501,26.48901229,188.87,188.68,19.59042654]
[1755872880502,0.36,188.78,188.68,19.59042654]
[1755872880706,0.28432314,188.75,188.69,19.59042654]
[1755872880920,0.28432314,188.75,188.67,0.03]
[1755872881221,0.28432314,188.76,188.72,19.59042654]
[1755872881407,0.36,188.75,188.67,0.03]
[1755872881614,0.28432314,188.76,188.72,19.59042654]
[1755872881923,19.59042654,188.73,188.67,0.03]
[1755872882109,0.28432314,188.74,188.67,0.03]
[1755872882301,19.73258811,188.76,188.67,0.03]
[1755872882505,0.14216157,188.68,188.67,0.03]
[1755872882705,0.14216157,188.67,188.65,0.03]
[1755872882920,19.59042654,188.66,188.52,0.72]
[1755872883121,19.87474968,188.56,188.45,2.624552]
[1755872883323,75.22,188.55,188.46,0.03]
[1755872883802,75.22,188.55,188.4,0.48]
[1755872883803,19.59042654,188.51,188.4,0.48]
[1755872884124,0.14216157,188.52,188.4,5.8845752]
[1755872884325,0.14216157,188.52,188.47,19.59042654]
[1755872884706,0.27,188.51,188.31,12.76756467]
[1755872884906,0.14216157,188.54,188.27,10.0]
[1755872885210,0.14216157,188.54,188.28,3.48805753]
[1755872885211,0.14216157,188.45,188.28,3.48805753]
[1755872885406,0.27,188.54,188.44,19.59042654]
[1755872885606,19.73258811,188.52,188.32,10.0]
[1755872885820,0.28432314,188.52,188.33,0.72]
[1755872886130,19.87474968,188.48,188.33,0.72]
[1755872886308,0.28432314,188.48,188.33,0.72]
[1755872886511,75.14,188.53,188.33,0.72]
[1755872886512,0.27,188.6,188.47,19.59042654]
[1755872886714,0.27,188.66,188.48,0.72]
[1755872886936,10.0,188.56,188.33,0.53098284]
[1755872887136,0.27,188.55,188.34,0.72]
[1755872887436,0.28432314,188.53,188.46,19.59042654]